[Event "AIIZIUCWT 2024"]
[Site "Rajkot"]
[Date "2024.01.24"]
[Round "4.1"]
[White "Ghosh Samriddhaa"]
[Black "Krithigga K"]
[Result "1/2-1/2"]
[ECO "B14"]
[WhiteElo "1872"]
[BlackElo "1966"]
[Annotator "RC"]
[PlyCount "93"]
[EventDate "2024.01.22"]
[EventType "team-tourn"]
[EventCountry "IND"]
[SourceTitle "playchess.com"]
[Source "ChessBase"]
[SourceQuality "1"]
[TimeControl "3600+30"]

1. e4 {[%emt 0:01:17]} c6 {[%emt 0:00:09]} 2. d4 {[%emt 0:00:38]} d5 {[%emt 0:00:20]} 3. exd5 {[%emt 0:01:01]} cxd5 {[%emt 0:00:09]} 4. c4 {[%emt 0:00:26]} Nf6 {[%emt 0:00:17]} 5. Nc3 {[%emt 0:00:23]} Nc6 {[%emt 0:03:42]} 6. Bg5 {[%emt 0:01:03]} e6 {[%emt 0:04:20]} 7. Nf3 {[%emt 0:03:04]} Be7 {[%emt 0:01:26]} 8. Bd3 {[%emt 0:03:56]} O-O {[%emt 0:02:51]} 9. O-O {[%emt 0:02:13]} h6 {[%emt 0:04:04]} 10. Bh4 {[%emt 0:02:20]} b6 {[%emt 0:04:55]} 11. Rc1 {[%emt 0:04:31]} Bb7 {[%emt 0:01:17]} 12. a3 {[%emt 0:11:42]} dxc4 {[%emt 0:11:36]} 13. Bxc4 {[%emt 0:00:26]} Nd5 {[%emt 0:04:58]} 14. Bg3 {[%emt 0:11:52]} Na5 {[%emt 0:06:48]} 15. Ba2 {[%emt 0:07:22]} Bf6 {[%emt 0:03:03]} 16. Nxd5 {[%emt 0:10:00]} Bxd5 {[%emt 0:00:58]} 17. Bc7 {[%emt 0:00:44]} Qd7 {[%emt 0:02:19]} 18. Ne5 {[%emt 0:03:01]} Bxe5 {[%emt 0:01:49]} 19. dxe5 {[%emt 0:00:02]} Rfc8 {[%emt 0:02:24]} 20. Bxd5 {[%emt 0:01:13]} exd5 {[%emt 0:00:48]} 21. Bd6 {[%emt 0:00:52]} Qb5 {[%emt 0:01:49]} 22. Qg4 {[%emt 0:02:41]} Nc4 {[%emt 0:06:50]} 23. Be7 {[%emt 0:00:21]} Kh8 {[%emt 0:00:45]} 24. f4 {[%emt 0:00:48]} Re8 {[%emt 0:01:04]} 25. Qh4 {[%emt 0:00:26]} Ne3 {[%emt 0:02:19]} 26. Bf6 {[%emt 0:00:02]} Kh7 {[%emt 0:01:32]} 27. Bxg7 {[%emt 0:00:06]} Re6 {[%emt 0:00:46]} 28. f5 {[%emt 0:01:10]} Qxb2 {[%emt 0:00:29]} 29. Qh3 {[%emt 0:00:23]} Rg8 {[%emt 0:00:19]} 30. f6 {[%emt 0:00:53]} Qxg2+ {[%emt 0:00:46]} 31. Qxg2 {[%emt 0:00:02]} Nxg2 {[%emt 0:00:07]} 32. Kxg2 {[%emt 0:00:21]} Rxe5 {[%emt 0:00:10]} 33. Rc7 {[%emt 0:00:31]} Kg6 {[%emt 0:00:19]} 34. Rf3 {[%emt 0:00:35]} Rd8 {[%emt 0:00:39]} 35. Rg3+ {[%emt 0:00:55]} Rg5 {[%emt 0:00:11]} 36. Rxa7 {[%emt 0:00:26]} d4 {[%emt 0:00:14]} 37. Kf2 {[%emt 0:00:20]} d3 {[%emt 0:01:04]} 38. Ke1 {[%emt 0:00:38]} d2+ {[%emt 0:00:24]} 39. Kd1 {[%emt 0:00:01]} Rxg3 {[%emt 0:00:13]} 40. hxg3 {[%emt 0:00:01]} Rd3 {[%emt 0:00:09]} 41. g4 {[%emt 0:00:45]} Rd4 {[%emt 0:01:38]} 42. Ra6 {[%emt 0:01:21]} Rxg4 {[%emt 0:00:31]} 43. Kxd2 {[%emt 0:00:24]} Rg3 {[%emt 0:00:21]} 44. a4 {[%emt 0:00:30]} Rg4 {[%emt 0:00:35]} 45. Rxb6 {[%emt 0:00:25]} Rxa4 {[%emt 0:00:12]} 46. Rb3 {[%emt 0:00:31]} Rg4 {[%emt 0:00:17]} 47. Rh3 {[%emt 0:00:31]} 1/2-1/2

[Event "AIIZIUCWT 2024"]
[Site "Rajkot"]
[Date "2024.01.24"]
[Round "4.2"]
[White "Sunyuktha C M N"]
[Black "Chitlange Sakshi"]
[Result "0-1"]
[ECO "B12"]
[WhiteElo "2013"]
[BlackElo "2210"]
[Annotator "RC"]
[PlyCount "90"]
[EventDate "2024.01.22"]
[EventType "team-tourn"]
[EventCountry "IND"]
[SourceTitle "playchess.com"]
[Source "ChessBase"]
[SourceQuality "1"]
[TimeControl "3600+30"]

1. e4 {[%emt 0:00:08]} c6 {[%emt 0:00:05]} 2. d4 {[%emt 0:00:21]} d5 {[%emt 0:00:06]} 3. e5 {[%emt 0:00:20]} c5 {[%emt 0:00:11]} 4. dxc5 {[%emt 0:01:04]} e6 {[%emt 0:00:07]} 5. a3 {[%emt 0:00:33]} Bxc5 {[%emt 0:00:12]} 6. b4 {[%emt 0:01:20]} Be7 {[%emt 0:04:06]} 7. Bd3 {[%emt 0:02:44]} Nd7 {[%emt 0:00:50]} 8. Bb2 {[%emt 0:01:51]} Nh6 {[%emt 0:02:40]} 9. Nf3 {[%emt 0:01:19]} f6 {[%emt 0:00:43]} 10. Qe2 {[%emt 0:13:43]} O-O {[%emt 0:01:47]} 11. O-O {[%emt 0:13:05]} Nf7 {[%emt 0:01:28]} 12. exf6 {[%emt 0:01:58]} Bxf6 {[%emt 0:00:25]} 13. c4 {[%emt 0:01:15]} Nb6 {[%emt 0:14:52]} 14. Ra2 {[%emt 0:22:58]} a5 {[%emt 0:08:56]} 15. c5 {[%emt 0:04:45]} Nd7 {[%emt 0:02:03]} 16. Qc2 {[%emt 0:00:10]} h6 {[%emt 0:01:57]} 17. b5 {[%emt 0:00:11]} e5 {[%emt 0:12:09]} 18. c6 {[%emt 0:00:50]} bxc6 {[%emt 0:01:47]} 19. bxc6 {[%emt 0:00:23]} Nb6 {[%emt 0:02:47]} 20. Rd1 {[%emt 0:00:48]} Qc7 {[%emt 0:01:46]} 21. Be2 {[%emt 0:00:35]} Be6 {[%emt 0:04:15]} 22. Nbd2 {[%emt 0:00:21]} Rfc8 {[%emt 0:01:06]} 23. Rc1 {[%emt 0:00:20]} d4 {[%emt 0:01:57]} 24. Raa1 {[%emt 0:00:13]} Nd6 {[%emt 0:00:29]} 25. Ne4 {[%emt 0:00:27]} Nxe4 {[%emt 0:00:53]} 26. Qxe4 {[%emt 0:00:03]} Bd5 {[%emt 0:02:01]} 27. Qf5 {[%emt 0:00:05]} Re8 {[%emt 0:02:20]} 28. a4 {[%emt 0:01:17]} Rad8 {[%emt 0:00:41]} 29. Rc5 {[%emt 0:00:28]} Be6 {[%emt 0:00:56]} 30. Qe4 {[%emt 0:00:43]} Bd5 {[%emt 0:00:51]} 31. Qf5 {[%emt 0:00:35]} Be6 {[%emt 0:00:29]} 32. Qe4 {[%emt 0:00:06]} Bd5 {[%emt 0:00:28]} 33. Qf5 {[%emt 0:00:32]} Be7 {[%emt 0:00:48]} 34. Rxd5 {[%emt 0:01:26]} Nxd5 {[%emt 0:00:26]} 35. Qe6+ {[%emt 0:00:21]} Kh8 {[%emt 0:00:32]} 36. Nxe5 {[%emt 0:00:22]} Nf4 {[%emt 0:00:27]} 37. Nf7+ {[%emt 0:00:44]} Kg8 {[%emt 0:00:44]} 38. Nxh6+ {[%emt 0:00:29]} Kh7 {[%emt 0:00:34]} 39. Qf5+ {[%emt 0:00:22]} Kxh6 {[%emt 0:00:26]} 40. Bc1 {[%emt 0:00:03]} Bg5 {[%emt 0:00:13]} 41. Bxf4 {[%emt 0:00:35]} Qxf4 {[%emt 0:00:13]} 42. Qh3+ {[%emt 0:00:12]} Qh4 {[%emt 0:00:29]} 43. c7 {[%emt 0:00:21]} Qxh3 {[%emt 0:00:18]} 44. cxd8=Q {[%emt 0:00:12]} Bxd8 {[%emt 0:00:05]} 45. gxh3 {[%emt 0:00:02]} Rxe2 {[%emt 0:00:06]} 0-1

[Event "AIIZIUCWT 2024"]
[Site "Rajkot"]
[Date "2024.01.24"]
[Round "4.3"]
[White "Chandreyee, Hajra"]
[Black "Swapna C N"]
[Result "1-0"]
[ECO "B30"]
[WhiteElo "1854"]
[BlackElo "1718"]
[Annotator "NA RC"]
[PlyCount "69"]
[EventDate "2024.01.22"]
[EventType "team-tourn"]
[EventCountry "IND"]
[SourceTitle "playchess.com"]
[Source "ChessBase"]
[SourceQuality "1"]
[TimeControl "3600+30"]

1. e4 {[%emt 0:04:26]} c5 {[%emt 0:00:24]} 2. Nf3 {[%emt 0:00:21]} Nc6 {[%emt 0:00:06]} 3. Bb5 {[%emt 0:00:05]} e6 {[%emt 0:00:06]} 4. Bxc6 {[%emt 0:00:05]} bxc6 {[%emt 0:00:07]} 5. d3 {[%emt 0:00:16]} d5 {[%emt 0:01:17]} 6. e5 {[%emt 0:01:22]} f6 {[%emt 0:04:02]} 7. Qe2 {[%emt 0:05:13]} Be7 {[%emt 0:07:29]} 8. h4 {[%emt 0:01:22]} (8. b3 $16) 8... Qb6 {[%emt 0:07:50]} (8... fxe5 $11 9. Nxe5 Bd6) 9. c3 $11 {[%emt 0:08:02]} (9. b3 $14) 9... f5 {[%emt 0:11:59]} 10. Ng5 {[%emt 0:01:24]} h5 {[%emt 0:04:04]} 11. Nh3 {[%emt 0:01:30]} g6 {[%emt 0:02:10]} 12. Nf4 {[%emt 0:01:42]} Kf7 {[%emt 0:00:45]} 13. Qf3 {[%emt 0:01:05]} Bd8 {[%emt 0:04:24]} 14. Qg3 {[%emt 0:00:13]} Ne7 {[%emt 0:00:07]} 15. Qg5 {[%emt 0:01:00]} Rf8 {[%emt 0:02:56]} 16. Rh3 {[%emt 0:02:47]} Bc7 {[%emt 0:07:05]} 17. Nxg6 {[%emt 0:01:33]} Nxg6 {[%emt 0:03:11]} 18. Qf6+ {[%emt 0:00:07]} Ke8 {[%emt 0:00:03]} 19. Qxg6+ {[%emt 0:00:08]} Rf7 {[%emt 0:00:40]} 20. Qg8+ {[%emt 0:02:23]} Rf8 {[%emt 0:00:12]} 21. Qg7 {[%emt 0:01:16]} Rf7 {[%emt 0:00:09]} 22. Qh8+ {[%emt 0:00:27]} Rf8 {[%emt 0:02:36]} 23. Qxh5+ {[%emt 0:00:12]} Rf7 {[%emt 0:00:02]} 24. Rg3 {[%emt 0:02:39]} Bxe5 {[%emt 0:10:46]} 25. Rg8+ {[%emt 0:00:07]} Ke7 {[%emt 0:00:00]} 26. Bg5+ {[%emt 0:02:05]} Bf6 {[%emt 0:00:00]} 27. Bxf6+ {[%emt 0:00:11]} Kxf6 {[%emt 0:00:00]} 28. Qg5+ {[%emt 0:00:07]} Ke5 {[%emt 0:00:00]} 29. Rd8 {[%emt 0:00:11]} Bd7 {[%emt 0:00:00]} 30. d4+ {[%emt 0:03:28]} cxd4 {[%emt 0:00:00]} 31. cxd4+ {[%emt 0:00:50]} Kd6 {[%emt 0:01:29]} 32. Rxa8 {[%emt 0:00:29]} Qxb2 {[%emt 0:01:59]} 33. Qg3+ {[%emt 0:00:14]} Ke7 {[%emt 0:00:09]} 34. Qa3+ {[%emt 0:00:08]} Qxa3 {[%emt 0:00:13]} 35. Nxa3 {[%emt 0:00:04]} 1-0

[Event "AIIZIUCWT 2024"]
[Site "Rajkot"]
[Date "2024.01.24"]
[Round "4.4"]
[White "Poorna Sri M.K"]
[Black "Diya Chowdhury"]
[Result "1/2-1/2"]
[ECO "B22"]
[WhiteElo "1812"]
[BlackElo "1881"]
[Annotator "NA RC"]
[PlyCount "100"]
[EventDate "2024.01.22"]
[EventType "team-tourn"]
[EventCountry "IND"]
[SourceTitle "playchess.com"]
[Source "ChessBase"]
[SourceQuality "1"]
[TimeControl "3600+30"]

1. e4 {[%emt 0:00:08]} c5 {[%emt 0:01:15]} 2. Nf3 {[%emt 0:00:09]} e6 {[%emt 0:00:05]} 3. c3 {[%emt 0:00:06]} d5 {[%emt 0:00:13]} 4. exd5 {[%emt 0:00:42]} exd5 {[%emt 0:00:18]} 5. d4 {[%emt 0:01:05]} Nf6 {[%emt 0:00:28]} 6. Bb5+ {[%emt 0:05:22]} Bd7 {[%emt 0:01:13]} 7. Bxd7+ {[%emt 0:00:55]} Nbxd7 {[%emt 0:00:18]} 8. O-O {[%emt 0:00:08]} Be7 {[%emt 0:00:14]} 9. Bf4 {[%emt 0:03:01]} O-O {[%emt 0:01:49]} 10. Nbd2 {[%emt 0:00:12]} Nh5 {[%emt 0:08:14]} 11. Be3 {[%emt 0:02:03]} Nhf6 {[%emt 0:12:04]} 12. dxc5 {[%emt 0:02:26]} Nxc5 {[%emt 0:01:12]} 13. Nd4 {[%emt 0:01:00]} Qd7 $11 {[%emt 0:04:08]} 14. N2f3 {[%emt 0:02:58]} Bd6 {[%emt 0:01:50]} 15. h3 {[%emt 0:00:39]} Nfe4 {[%emt 0:03:09]} 16. Nh4 {[%emt 0:07:02]} f5 {[%emt 0:07:05]} 17. f4 {[%emt 0:07:03]} Rae8 {[%emt 0:03:04]} 18. Rc1 {[%emt 0:06:40]} Ng3 {[%emt 0:03:42]} 19. Rf3 {[%emt 0:12:13]} Rxe3 {[%emt 0:03:02]} 20. Rxe3 {[%emt 0:00:09]} Bxf4 {[%emt 0:00:07]} 21. Rxg3 {[%emt 0:01:29]} Bxg3 {[%emt 0:00:24]} 22. Nhxf5 {[%emt 0:01:47]} Rxf5 {[%emt 0:08:15]} 23. Nxf5 {[%emt 0:00:10]} Qxf5 {[%emt 0:00:05]} 24. Qf3 {[%emt 0:04:37]} Qxf3 {[%emt 0:01:49]} 25. gxf3 {[%emt 0:00:06]} Kf7 {[%emt 0:02:09]} 26. Kg2 {[%emt 0:01:50]} Bf4 {[%emt 0:00:23]} 27. Rd1 {[%emt 0:03:04]} Ke6 {[%emt 0:00:08]} 28. c4 {[%emt 0:00:21]} dxc4 {[%emt 0:00:51]} 29. Rd4 {[%emt 0:00:07]} Nd3 {[%emt 0:01:16]} 30. Rxc4 {[%emt 0:00:16]} Be5 {[%emt 0:00:38]} 31. b3 {[%emt 0:02:30]} Nf4+ {[%emt 0:00:11]} 32. Kf1 {[%emt 0:06:12]} g5 {[%emt 0:01:11]} 33. Rc8 {[%emt 0:00:00]} Nxh3 {[%emt 0:01:34]} 34. Re8+ {[%emt 0:00:00]} Kd6 {[%emt 0:00:43]} 35. Rb8 {[%emt 0:00:00]} Kc6 {[%emt 0:00:36]} 36. Re8 {[%emt 0:00:00]} Kd6 {[%emt 0:02:28]} 37. Rb8 {[%emt 0:00:00]} b6 {[%emt 0:00:18]} 38. Rb7 {[%emt 0:00:00]} h5 {[%emt 0:00:04]} 39. Rxa7 {[%emt 0:00:00]} h4 {[%emt 0:00:46]} 40. Rb7 {[%emt 0:00:47]} Bd4 {[%emt 0:00:31]} 41. b4 {[%emt 0:01:24]} Nf4 {[%emt 0:00:54]} 42. a4 {[%emt 0:00:39]} h3 {[%emt 0:00:20]} 43. a5 {[%emt 0:00:26]} bxa5 {[%emt 0:00:33]} 44. bxa5 {[%emt 0:00:03]} Kc6 {[%emt 0:01:15]} 45. a6 {[%emt 0:00:54]} Ng6 {[%emt 0:01:16]} 46. Rb4 {[%emt 0:00:47]} Bb6 {[%emt 0:00:37]} 47. Rb2 {[%emt 0:00:30]} Nf4 {[%emt 0:00:37]} 48. Ra2 {[%emt 0:01:17]} Ba7 {[%emt 0:00:08]} 49. Rb2 {[%emt 0:00:03]} Bb6 {[%emt 0:00:20]} 50. Ra2 {[%emt 0:00:11]} Ba7 {[%emt 0:00:06]} 1/2-1/2

[Event "AIIZIUCWT 2024"]
[Site "Rajkot"]
[Date "2024.01.24"]
[Round "4.7"]
[White "Gayatri U Panbude"]
[Black "Tanishka Kotia"]
[Result "0-1"]
[ECO "B35"]
[WhiteElo "1168"]
[BlackElo "1787"]
[Annotator "NA RC"]
[PlyCount "50"]
[EventDate "2024.01.22"]
[EventType "team-tourn"]
[EventCountry "IND"]
[SourceTitle "playchess.com"]
[Source "ChessBase"]
[SourceQuality "1"]
[TimeControl "3600+30"]

1. e4 {[%emt 0:00:09]} c5 {[%emt 0:00:19]} 2. Nf3 {[%emt 0:00:39]} Nc6 {[%emt 0:00:14]} 3. d4 {[%emt 0:00:40]} cxd4 {[%emt 0:00:02]} 4. Nxd4 {[%emt 0:00:16]} g6 {[%emt 0:00:09]} 5. Nc3 {[%emt 0:01:28]} Bg7 {[%emt 0:00:49]} 6. Be3 {[%emt 0:00:54]} Nf6 {[%emt 0:00:11]} 7. Bc4 {[%emt 0:01:53]} O-O {[%emt 0:00:19]} 8. Qd2 {[%emt 0:02:09]} Ng4 {[%emt 0:12:46]} 9. Nb3 {[%emt 0:12:27]} Nxe3 {[%emt 0:01:07]} 10. Qxe3 {[%emt 0:00:38]} a6 {[%emt 0:07:07]} 11. O-O-O {[%emt 0:13:28]} b5 {[%emt 0:04:16]} 12. Bd5 {[%emt 0:03:03]} Qc7 {[%emt 0:01:08]} 13. g4 {[%emt 0:12:30]} Bb7 {[%emt 0:04:18]} 14. h4 {[%emt 0:06:22]} Rfc8 {[%emt 0:15:05]} 15. h5 {[%emt 0:04:16]} b4 {[%emt 0:01:51]} 16. Na4 {[%emt 0:05:17]} Ne5 {[%emt 0:01:27]} 17. Qe2 {[%emt 0:01:21]} Bxd5 {[%emt 0:01:14]} 18. exd5 {[%emt 0:00:11]} Nxg4 {[%emt 0:01:17]} 19. hxg6 {[%emt 0:00:44]} hxg6 {[%emt 0:00:24]} 20. Nac5 {[%emt 0:00:48]} Ne5 {[%emt 0:01:43]} 21. f4 {[%emt 0:00:31]} d6 {[%emt 0:00:30]} 22. fxe5 {[%emt 0:00:30]} dxc5 {[%emt 0:00:30]} 23. Qh2 {[%emt 0:00:30]} Qxe5 {[%emt 0:00:30]} 24. Qh7+ {[%emt 0:00:30]} Kf8 {[%emt 0:00:30]} 25. c3 {[%emt 0:00:30]} bxc3 {[%emt 0:00:30]} 0-1

[Event "AIIZIUCWT 2024"]
[Site "Rajkot"]
[Date "2024.01.25"]
[Round "5.1"]
[White "Mohana Praba R B"]
[Black "Ghosh Samriddhaa"]
[Result "0-1"]
[ECO "D02"]
[WhiteElo "1478"]
[BlackElo "1872"]
[Annotator "NA RC COMBH"]
[PlyCount "50"]
[EventDate "2024.01.22"]
[EventType "team-tourn"]
[EventCountry "IND"]
[SourceTitle "playchess.com"]
[Source "ChessBase"]
[SourceQuality "1"]
[TimeControl "3600+30"]

1. d4 {[%emt 0:00:51]} d5 {[%emt 0:00:17]} 2. Nf3 {[%emt 0:00:12]} Nf6 {[%emt 0:00:07]} 3. Bf4 {[%emt 0:00:08]} c5 {[%emt 0:01:56]} 4. e3 {[%emt 0:00:13]} Nc6 {[%emt 0:01:12]} 5. c3 {[%emt 0:01:44]} Qb6 {[%emt 0:01:18]} 6. Qc1 {[%emt 0:06:29]} Bf5 {[%emt 0:11:07]} 7. Nbd2 {[%emt 0:03:35]} cxd4 {[%emt 0:06:29]} 8. exd4 {[%emt 0:03:05]} Rc8 {[%emt 0:03:21]} 9. a3 {[%emt 0:23:38]} h6 {[%emt 0:07:35]} 10. Be2 {[%emt 0:05:51]} Ne4 {[%emt 0:07:58]} 11. O-O {[%emt 0:09:23]} g5 {[%emt 0:02:35]} 12. Be3 {[%emt 0:02:46]} Bg7 {[%emt 0:04:49]} 13. Nxe4 {[%emt 0:02:27]} Bxe4 {[%emt 0:00:54]} 14. b4 {[%emt 0:05:53]} O-O {[%emt 0:07:17]} 15. Qd2 {[%emt 0:01:05]} f5 {[%emt 0:00:31]} 16. Qb2 {[%emt 0:00:31]} f4 {[%emt 0:01:12]} 17. Bd2 {[%emt 0:00:32]} g4 {[%emt 0:00:49]} 18. Ne5 {[%emt 0:00:31]} Nxe5 {[%emt 0:02:48]} 19. dxe5 {[%emt 0:00:02]} f3 {[%emt 0:00:06]} 20. Be3 {[%emt 0:00:45]} Qg6 {[%emt 0:00:21]} 21. Bb5 {[%emt 0:00:41]} fxg2 {[%emt 0:00:12]} 22. Rfe1 {[%emt 0:00:30]} Bxe5 {[%emt 0:00:07]} 23. Bd7 {[%emt 0:00:33]} Bxh2+ {[%emt 0:00:26]} 24. Kxh2 {[%emt 0:00:15]} Qh5+ {[%emt 0:00:05]} 25. Kg3 {[%emt 0:00:19]} Qh3# {[%emt 0:08:41]} 0-1

[Event "AIIZIUCWT 2024"]
[Site "Rajkot"]
[Date "2024.01.25"]
[Round "5.2"]
[White "Chitlange Sakshi"]
[Black "Benasir M"]
[Result "1-0"]
[ECO "E12"]
[WhiteElo "2210"]
[BlackElo "1651"]
[Annotator "RC"]
[PlyCount "107"]
[EventDate "2024.01.22"]
[EventType "team-tourn"]
[EventCountry "IND"]
[SourceTitle "playchess.com"]
[Source "ChessBase"]
[SourceQuality "1"]
[TimeControl "3600+30"]

1. d4 {[%emt 0:00:03]} Nf6 {[%emt 0:00:07]} 2. c4 {[%emt 0:00:06]} e6 {[%emt 0:00:06]} 3. Nf3 {[%emt 0:00:20]} b6 {[%emt 0:00:38]} 4. a3 {[%emt 0:00:35]} Bb7 {[%emt 0:01:44]} 5. Nc3 {[%emt 0:00:02]} d5 {[%emt 0:02:47]} 6. cxd5 {[%emt 0:00:29]} exd5 {[%emt 0:06:05]} 7. Bg5 {[%emt 0:00:06]} Be7 {[%emt 0:00:22]} 8. e3 {[%emt 0:00:13]} Nbd7 {[%emt 0:03:26]} 9. Bd3 {[%emt 0:00:40]} h6 {[%emt 0:03:37]} 10. Bh4 {[%emt 0:00:54]} O-O {[%emt 0:01:30]} 11. Rc1 {[%emt 0:00:24]} Ne4 {[%emt 0:06:15]} 12. Bxe7 {[%emt 0:02:17]} Qxe7 {[%emt 0:00:02]} 13. O-O {[%emt 0:00:36]} c5 {[%emt 0:06:53]} 14. dxc5 {[%emt 0:00:30]} Nxc3 {[%emt 0:02:01]} 15. Rxc3 {[%emt 0:00:36]} bxc5 {[%emt 0:03:16]} 16. Re1 {[%emt 0:02:02]} Nb6 {[%emt 0:02:33]} 17. Rc1 {[%emt 0:01:45]} Rfd8 {[%emt 0:00:49]} 18. Qe2 {[%emt 0:06:47]} Rac8 {[%emt 0:05:42]} 19. e4 {[%emt 0:14:42]} d4 {[%emt 0:03:14]} 20. Nd2 {[%emt 0:01:31]} Rc7 {[%emt 0:05:34]} 21. Rc2 {[%emt 0:02:17]} Bc8 {[%emt 0:04:34]} 22. f4 {[%emt 0:08:48]} Bd7 {[%emt 0:05:48]} 23. Kh1 {[%emt 0:01:42]} Ba4 {[%emt 0:00:47]} 24. Rcc1 {[%emt 0:02:31]} Be8 {[%emt 0:03:58]} 25. Qf1 {[%emt 0:03:33]} Bd7 {[%emt 0:00:37]} 26. b3 {[%emt 0:01:23]} Be8 {[%emt 0:00:29]} 27. Rc2 {[%emt 0:02:13]} c4 {[%emt 0:00:27]} 28. Nxc4 {[%emt 0:01:27]} Nxc4 {[%emt 0:00:03]} 29. Rxc4 {[%emt 0:01:02]} Rxc4 {[%emt 0:00:13]} 30. Bxc4 {[%emt 0:00:34]} Qxa3 {[%emt 0:00:08]} 31. Qd3 {[%emt 0:02:10]} Bc6 {[%emt 0:01:36]} 32. h3 {[%emt 0:00:46]} Qb2 {[%emt 0:00:19]} 33. Rd1 {[%emt 0:02:02]} Ba8 {[%emt 0:00:28]} 34. Kh2 {[%emt 0:02:32]} Qf2 {[%emt 0:00:08]} 35. Rf1 {[%emt 0:00:33]} Qe3 {[%emt 0:00:21]} 36. Qxe3 {[%emt 0:02:49]} dxe3 {[%emt 0:00:02]} 37. Re1 {[%emt 0:00:16]} Rd4 {[%emt 0:01:20]} 38. Rxe3 {[%emt 0:00:32]} Bxe4 {[%emt 0:00:23]} 39. Re2 {[%emt 0:01:13]} Kf8 {[%emt 0:00:13]} 40. Bb5 {[%emt 0:03:15]} Rb4 {[%emt 0:00:52]} 41. Bc4 {[%emt 0:00:26]} f5 {[%emt 0:00:07]} 42. Ra2 {[%emt 0:00:27]} Rb7 {[%emt 0:00:07]} 43. Kg3 {[%emt 0:01:02]} Rd7 {[%emt 0:00:52]} 44. Kf2 {[%emt 0:00:31]} Ke7 {[%emt 0:00:30]} 45. Ke3 {[%emt 0:00:15]} Kd8 {[%emt 0:00:58]} 46. g3 {[%emt 0:00:23]} Ke7 {[%emt 0:00:45]} 47. Ra6 {[%emt 0:01:26]} Kd8 {[%emt 0:00:30]} 48. h4 {[%emt 0:00:26]} Ke7 {[%emt 0:00:30]} 49. Ra5 {[%emt 0:00:33]} Bc2 {[%emt 0:00:39]} 50. Rc5 {[%emt 0:01:31]} Rb7 {[%emt 0:00:18]} 51. Bd5 {[%emt 0:00:21]} Kd6 {[%emt 0:00:16]} 52. Ra5 {[%emt 0:00:55]} Re7+ {[%emt 0:00:20]} 53. Kd4 {[%emt 0:00:23]} Be4 {[%emt 0:00:14]} 54. Ra6+ {[%emt 0:02:35]} 1-0

[Event "AIIZIUCWT 2024"]
[Site "Rajkot"]
[Date "2024.01.25"]
[Round "5.3"]
[White "Achaya Vijayan"]
[Black "Arpita, Mukherjee"]
[Result "0-1"]
[ECO "E94"]
[WhiteElo "1790"]
[BlackElo "2186"]
[Annotator "RC"]
[PlyCount "94"]
[EventDate "2024.01.22"]
[EventType "team-tourn"]
[EventCountry "IND"]
[SourceTitle "playchess.com"]
[Source "ChessBase"]
[SourceQuality "1"]
[TimeControl "3600+30"]

1. d4 {[%emt 0:00:04]} Nf6 {[%emt 0:00:33]} 2. c4 {[%emt 0:00:05]} g6 {[%emt 0:00:49]} 3. Nc3 {[%emt 0:00:05]} Bg7 {[%emt 0:00:03]} 4. e4 {[%emt 0:00:06]} d6 {[%emt 0:00:08]} 5. Nf3 {[%emt 0:00:17]} O-O {[%emt 0:00:08]} 6. Be2 {[%emt 0:00:05]} Nbd7 {[%emt 0:00:05]} 7. O-O {[%emt 0:00:20]} e5 {[%emt 0:00:09]} 8. d5 {[%emt 0:02:23]} Qe7 {[%emt 0:02:58]} 9. Ne1 {[%emt 0:02:55]} c5 {[%emt 0:01:51]} 10. dxc6 {[%emt 0:04:02]} bxc6 {[%emt 0:00:09]} 11. b3 {[%emt 0:05:15]} Nc5 {[%emt 0:00:26]} 12. f3 {[%emt 0:01:17]} Ne6 {[%emt 0:00:10]} 13. Ba3 {[%emt 0:02:46]} Rd8 {[%emt 0:00:21]} 14. Nd3 {[%emt 0:47:50]} Nh5 {[%emt 0:00:16]} 15. c5 {[%emt 0:00:00]} dxc5 {[%emt 0:02:08]} 16. Qc1 {[%emt 0:00:00]} Nhf4 {[%emt 0:12:57]} 17. Nxf4 {[%emt 0:00:00]} exf4 {[%emt 0:01:47]} 18. Kh1 {[%emt 0:00:00]} Bd4 {[%emt 0:01:14]} 19. Na4 {[%emt 0:02:30]} Bxa1 {[%emt 0:02:59]} 20. Qxa1 {[%emt 0:00:00]} Rd2 {[%emt 0:00:02]} 21. Bc4 {[%emt 0:00:00]} Qg5 {[%emt 0:03:50]} 22. Rg1 {[%emt 0:00:00]} Ng7 {[%emt 0:06:16]} 23. Qc3 {[%emt 0:02:00]} Nh5 {[%emt 0:00:24]} 24. h3 {[%emt 0:00:00]} Qd8 {[%emt 0:07:49]} 25. Bb2 {[%emt 0:00:00]} Qd4 {[%emt 0:00:16]} 26. Qc1 {[%emt 0:00:00]} Qe3 {[%emt 0:01:13]} 27. Bc3 {[%emt 0:00:00]} Rf2 {[%emt 0:14:00]} 28. Qxe3 {[%emt 0:00:00]} fxe3 {[%emt 0:00:06]} 29. Nxc5 {[%emt 0:00:00]} Rc2 {[%emt 0:02:15]} 30. Be5 {[%emt 0:00:00]} e2 {[%emt 0:00:21]} 31. Re1 {[%emt 0:00:03]} Rxa2 {[%emt 0:01:18]} 32. Bxe2 {[%emt 0:00:56]} Rd2 {[%emt 0:04:32]} 33. Bc4 {[%emt 0:00:42]} Ng7 {[%emt 0:00:17]} 34. Bf4 {[%emt 0:00:37]} Rd8 {[%emt 0:00:14]} 35. Bg5 {[%emt 0:01:08]} Re8 {[%emt 0:00:01]} 36. Rd1 {[%emt 0:01:13]} Ne6 {[%emt 0:00:14]} 37. Nxe6 {[%emt 0:00:27]} Bxe6 {[%emt 0:00:02]} 38. Rd6 {[%emt 0:00:36]} Bxc4 {[%emt 0:00:05]} 39. bxc4 {[%emt 0:00:00]} Re6 {[%emt 0:00:08]} 40. c5 {[%emt 0:00:50]} a5 {[%emt 0:00:13]} 41. Bc1 {[%emt 0:00:22]} Rxd6 {[%emt 0:00:28]} 42. cxd6 {[%emt 0:00:02]} Kf8 {[%emt 0:00:01]} 43. e5 {[%emt 0:00:25]} Ke8 {[%emt 0:00:06]} 44. Kg1 {[%emt 0:00:10]} a4 {[%emt 0:00:04]} 45. Ba3 {[%emt 0:00:09]} Rb8 {[%emt 0:00:03]} 46. f4 {[%emt 0:00:21]} Rb3 {[%emt 0:00:04]} 47. Bc5 {[%emt 0:00:06]} a3 {[%emt 0:00:05]} 0-1